bitfinex-derivatives/quotes_SOLF0:USTF0_20260208
["timestamp","ask_amount","ask_price","bid_price","bid_amount"]
[1770593601731,10.399,86.605,86.536,10.4072]
[1770593602337,10.399,86.605,86.536,71.77744645]
[1770593602535,10.3978,86.616,86.546,10.4061]
[1770593602849,14.09873408,86.667,86.53,9.1579843]
[1770593602850,64.73874048,86.629,86.551,61.37024645]
[1770593603335,64.73874048,86.627,86.531,61.37024645]
[1770593603528,9.1579843,86.63,86.531,61.37024645]
[1770593603529,64.73874048,86.625,86.531,61.37024645]
[1770593603727,64.73874048,86.647,86.561,61.37024645]
[1770593604436,72.94749931,86.669,86.581,61.37024645]
[1770593604743,64.73874048,86.669,86.581,61.37024645]
[1770593605033,64.73874048,86.669,86.58,9.1579843]
[1770593605034,10.3916,86.667,86.601,61.37024645]
[1770593605633,64.73874048,86.669,86.601,61.37024645]
[1770593606234,8.20875883,86.683,86.615,10.3977]
[1770593606436,64.73874048,86.69,86.616,61.37024645]
[1770593606940,64.73874048,86.688,86.609,10.3985]
[1770593607142,9.1579843,86.69,86.58,9.1579843]
[1770593607143,64.73874048,86.669,86.58,9.1579843]
[1770593607338,10.3926,86.659,86.587,10.4011]
[1770593607642,64.73874048,86.669,86.588,61.37024645]
[1770593608235,64.73874048,86.69,86.605,61.37024645]
[1770593608440,73.89672478,86.69,86.605,61.37024645]
[1770593608945,64.73874048,86.69,86.614,61.37024645]
[1770593609535,9.1579843,86.71,86.614,61.37024645]
[1770593609740,64.73874048,86.729,86.641,61.37024645]
[1770593610438,64.73874048,86.729,86.655,10.393]
[1770593610739,64.73874048,86.729,86.655,61.37024645]
[1770593610942,64.73874048,86.729,86.636,61.37024645]
[1770593611330,64.73874048,86.729,86.641,61.37024645]
[1770593611531,64.73874048,86.752,86.676,71.76064645]
[1770593611745,14.09873408,86.778,86.64,9.1579843]
[1770593611746,64.73874048,86.749,86.655,61.37024645]
[1770593612141,64.73874048,86.737,86.655,61.37024645]
[1770593613247,64.73874048,86.73,86.659,61.37024645]
[1770593613838,64.73874048,86.73,86.666,10.3916]
[1770593614431,64.73874048,86.73,86.659,61.37024645]
[1770593614639,73.89672478,86.73,86.64,9.1579843]
[1770593614844,10.3846,86.726,86.64,10.3947]
[1770593615045,64.73874048,86.725,86.64,61.37024645]
[1770593615344,64.73874048,86.725,86.593,20.8009]
[1770593615345,64.73874048,86.759,86.661,61.37024645]
[1770593615547,64.73874048,86.759,86.687,10.3891]
[1770593615950,64.73874048,86.759,86.688,61.37024645]
[1770593616539,64.73874048,86.781,86.688,61.37024645]
[1770593617345,64.73874048,86.781,86.703,61.37024645]
[1770593617547,64.73874048,86.804,86.703,61.37024645]
[1770593618041,64.73874048,86.804,86.728,61.37024645]
[1770593618249,64.73874048,86.829,86.741,61.37024645]
[1770593618447,64.73874048,86.827,86.741,61.37024645]
[1770593618646,64.73874048,86.848,86.741,61.37024645]
[1770593619844,64.73874048,86.839,86.756,71.75114645]
[1770593620245,64.73874048,86.839,86.765,10.3798]
[1770593620445,64.73874048,86.839,86.761,61.37024645]
[1770593620751,64.73874048,86.829,86.74,61.37024645]
[1770593620950,64.73874048,86.822,86.74,61.37024645]
[1770593621150,64.73874048,86.809,86.72,9.1579843]
[1770593621351,64.73874048,86.809,86.721,61.37024645]
[1770593621545,64.73874048,86.809,86.723,61.37024645]
[1770593622452,64.73874048,86.799,86.723,61.37024645]
[1770593623049,64.73874048,86.779,86.686,61.37024645]
[1770593623640,10.38,86.764,86.686,61.37024645]
[1770593623840,64.73874048,86.786,86.686,61.37024645]
[1770593624047,64.73874048,86.786,86.64,9.1579843]
[1770593624048,64.73874048,86.846,86.701,61.37024645]
[1770593624348,64.73874048,86.8,86.716,61.37024645]
[1770593624551,64.73874048,86.8,86.721,61.37024645]
[1770593625644,9.1579843,86.81,86.721,61.37024645]
[1770593625847,9.1579843,86.81,86.662,20.7844]
[1770593625848,61.27982287,86.822,86.74,9.1579843]
[1770593626047,61.27982287,86.822,86.76,10.3804]
[1770593626241,8.11758316,86.889,86.74,9.1579843]
[1770593626242,61.27982287,86.849,86.761,64.35546502]
[1770593626654,61.27982287,86.847,86.765,74.73526502]
[1770593627947,71.65002287,86.846,86.765,74.73526502]
[1770593628350,61.27982287,86.846,86.777,10.3784]
[1770593628548,61.27982287,86.846,86.778,64.35546502]
[1770593628752,10.3687,86.859,86.781,64.35546502]
[1770593629047,61.27982287,86.829,86.74,9.1579843]
[1770593629255,61.27982287,86.829,86.736,64.35546502]
[1770593629441,61.27982287,86.809,86.72,9.1579843]
[1770593629646,61.27982287,86.801,86.715,64.35546502]
[1770593630746,61.27982287,86.801,86.72,74.74066502]
[1770593631154,61.27982287,86.797,86.72,74.74066502]
[1770593631354,61.27982287,86.797,86.731,74.73926502]
[1770593632359,61.27982287,86.818,86.743,74.73796502]
[1770593632756,61.27982287,86.83,86.743,64.35546502]
[1770593633060,61.27982287,86.849,86.761,64.35546502]
[1770593633256,61.27982287,86.849,86.781,64.35546502]
[1770593633659,61.27982287,86.849,86.7,29.87963299]
[1770593633660,61.27982287,86.872,86.801,64.35546502]
[1770593634257,9.10443299,86.9,86.801,64.35546502]
[1770593634258,71.64562287,86.883,86.801,64.35546502]
[1770593634459,61.27982287,86.859,86.756,64.35546502]
[1770593634662,61.27982287,86.859,86.76,73.45989801]
[1770593634953,9.10443299,86.86,86.772,64.35546502]
[1770593634954,61.27982287,86.856,86.772,64.35546502]
[1770593635857,71.65102287,86.838,86.76,10.3804]
[1770593636162,61.27982287,86.838,86.75,64.35546502]
[1770593636458,61.27982287,86.838,86.771,74.73456502]
[1770593636862,61.27982287,86.838,86.76,9.10443299]
[1770593637157,61.27982287,86.838,86.728,64.35546502]
[1770593637364,61.27982287,86.819,86.728,64.35546502]
[1770593637559,61.27982287,86.799,86.7,9.10443299]
[1770593637858,61.27982287,86.799,86.701,64.35546502]
[1770593638359,61.27982287,86.791,86.715,64.35546502]
[1770593638557,61.27982287,86.812,86.715,64.35546502]
[1770593638862,61.27982287,86.812,86.721,64.35546502]
[1770593639257,61.27982287,86.812,86.74,10.3828]
[1770593639653,61.27982287,86.812,86.74,74.73826502]
[1770593640162,170.35753299,86.88,86.74,74.73826502]
[1770593640163,61.27982287,86.832,86.753,64.35546502]
[1770593640558,9.10443299,86.84,86.753,64.35546502]
[1770593640559,71.65212287,86.829,86.753,64.35546502]
[1770593640763,61.27982287,86.829,86.753,64.35546502]
[1770593641359,61.27982287,86.819,86.72,9.10443299]
[1770593641564,61.27982287,86.799,86.708,64.35546502]
[1770593641959,61.27982287,86.796,86.713,10.386]
[1770593642462,61.27982287,86.796,86.721,64.35546502]
[1770593642660,61.27982287,86.796,86.738,10.383]
[1770593642853,9.10443299,86.82,86.72,9.10443299]
[1770593642854,9.10443299,86.82,86.739,64.35546502]
[1770593643058,61.27982287,86.819,86.741,64.35546502]
[1770593643860,61.27982287,86.817,86.72,9.10443299]
[1770593644361,10.3761,86.797,86.721,10.385]
[1770593644563,71.65592287,86.797,86.721,10.385]
[1770593644755,61.27982287,86.797,86.718,64.35546502]
[1770593645271,61.27982287,86.786,86.7,9.10443299]
[1770593645560,10.44626019,86.859,86.64,9.10443299]
[1770593645561,61.27982287,86.819,86.708,64.35546502]
[1770593645863,61.27982287,86.809,86.708,64.35546502]
[1770593646058,61.27982287,86.763,86.687,10.3891]
[1770593646257,61.27982287,86.763,86.685,64.35546502]
[1770593647170,61.27982287,86.763,86.58,170.91443299]
[1770593647171,61.27982287,86.785,86.697,64.35546502]
[1770593648162,71.65862287,86.774,86.701,10.3875]
[1770593648368,61.27982287,86.769,86.68,9.10443299]
[1770593648666,61.27982287,86.769,86.674,64.35546502]
[1770593649257,61.27982287,86.769,86.681,64.35546502]
[1770593649462,9.10443299,86.81,86.64,9.10443299]
[1770593649463,61.27982287,86.791,86.701,64.35546502]
[1770593650259,61.27982287,86.787,86.71,10.3864]
[1770593650470,61.27982287,86.787,86.701,64.35546502]
[1770593650862,61.27982287,86.77,86.691,10.3887]
[1770593651969,10.3803,86.762,86.691,10.3887]
[1770593652365,61.27982287,86.77,86.701,10.3875]
[1770593652764,61.27982287,86.77,86.673,64.35546502]
[1770593652964,61.27982287,86.755,86.677,10.3904]
[1770593653164,61.27982287,86.755,86.677,74.74586502]
[1770593654570,61.27982287,86.755,86.688,74.74456502]
[1770593654765,61.27982287,86.755,86.688,64.35546502]
[1770593655975,61.27982287,86.755,86.692,10.3886]
[1770593656966,61.27982287,86.755,86.641,196.2856]
[1770593656967,60.90363288,86.751,86.663,63.42804005]
[1770593657168,60.90363288,86.749,86.663,63.42804005]
[1770593657567,8.14090246,86.748,86.663,63.42804005]
[1770593657774,69.04453534,86.747,86.663,63.42804005]
[1770593657971,60.90363288,86.745,86.663,63.42804005]
[1770593658581,60.90363288,86.743,86.663,63.42804005]
[1770593658876,10.3829,86.74,86.669,10.3913]
[1770593659171,10.3829,86.74,86.65,9.10443299]
[1770593659172,8.2434209,86.759,86.671,63.42804005]
[1770593659377,60.90363288,86.756,86.671,63.42804005]
[1770593659567,60.90363288,86.754,86.671,63.42804005]
[1770593659774,60.90363288,86.752,86.671,63.42804005]
[1770593659968,60.90363288,86.75,86.651,63.42804005]
[1770593660173,60.90363288,86.748,86.651,63.42804005]
[1770593660472,60.90363288,86.746,86.651,63.42804005]
[1770593660776,60.90363288,86.732,86.656,10.3928]
[1770593660976,60.90363288,86.732,86.656,73.82084005]
[1770593661376,60.90363288,86.717,86.645,10.3942]
[1770593661579,60.90363288,86.717,86.636,63.42804005]
[1770593662083,60.90363288,86.717,86.64,63.42804005]
[1770593662974,60.90363288,86.699,86.615,63.42804005]
[1770593663479,60.90363288,86.699,86.615,73.82574005]
[1770593663986,10.3912,86.671,86.596,63.42804005]
[1770593664178,71.29483288,86.671,86.596,63.42804005]
[1770593664484,60.90363288,86.671,86.609,10.3985]
[1770593665280,10.3885,86.693,86.62,63.42804005]
[1770593665479,60.90363288,86.692,86.62,63.42804005]
[1770593666483,60.90363288,86.688,86.611,10.3983]
[1770593667094,60.90363288,86.688,86.601,63.42804005]
[1770593667095,10.3909,86.673,86.601,63.42804005]
[1770593667290,60.90363288,86.672,86.601,63.42804005]
[1770593668890,60.90363288,86.669,86.601,63.42804005]
[1770593669887,60.90363288,86.669,86.602,10.3993]
[1770593670390,60.90363288,86.713,86.616,63.42804005]
[1770593670587,60.90363288,86.709,86.616,63.42804005]
[1770593671286,10.3897,86.683,86.618,10.3974]
[1770593671594,60.90363288,86.687,86.619,63.42804005]
[1770593672096,60.90363288,86.669,86.58,72.53247304]
[1770593672896,60.90363288,86.663,86.593,63.42804005]
[1770593674397,60.90363288,86.679,86.593,63.42804005]
[1770593675400,60.90363288,86.659,86.55,63.42804005]
[1770593675695,60.90363288,86.639,86.53,9.10443299]
[1770593675997,60.90363288,86.608,86.528,63.42804005]
[1770593676398,10.3989,86.607,86.529,10.4081]
[1770593676589,60.90363288,86.607,86.53,63.42804005]
[1770593677193,60.90363288,86.607,86.531,73.83594005]
[1770593677399,60.90363288,86.607,86.511,63.42804005]
[1770593677603,60.90363288,86.589,86.481,63.42804005]
[1770593677896,60.90363288,86.568,86.481,63.42804005]
[1770593678792,60.90363288,86.566,86.481,73.84194005]
[1770593679193,60.90363288,86.587,86.481,63.42804005]
[1770593679396,60.90363288,86.582,86.495,63.42804005]
[1770593679596,60.90363288,86.582,86.501,63.42804005]
[1770593680096,60.90363288,86.566,86.477,63.42804005]
[1770593680903,60.90363288,86.563,86.477,73.84244005]
[1770593681896,60.90363288,86.545,86.458,63.42804005]
[1770593682902,60.90363288,86.54,86.459,10.4165]
[1770593683297,60.90363288,86.561,86.47,9.10443299]
[1770593683502,60.90363288,86.561,86.471,63.42804005]
[1770593683697,60.90363288,86.544,86.453,10.4172]
[1770593683901,60.90363288,86.544,86.453,73.84524005]
[1770593684100,60.90363288,86.544,86.453,63.42804005]
[1770593684496,60.90363288,86.532,86.453,63.42804005]
[1770593685197,62.06534418,86.53,86.454,71.159374]
[1770593685904,62.06534418,86.53,86.433,62.75425919]
[1770593686103,62.06534418,86.519,86.433,60.742274]
[1770593686500,62.06534418,86.5,86.433,60.742274]
[1770593688399,62.06534418,86.498,86.413,60.742274]
[1770593689411,62.06534418,86.456,86.367,60.742274]
[1770593689906,62.06534418,86.454,86.363,2.01330051]
[1770593690105,62.06534418,86.454,86.266,231.08]
[1770593690106,62.06534418,86.439,86.344,60.742274]
[1770593690607,72.48674418,86.42,86.344,60.742274]
[1770593690904,62.06534418,86.42,86.344,60.742274]
[1770593691095,62.06534418,86.407,86.344,60.742274]
[1770593692000,72.48834418,86.406,86.33,9.10443299]
[1770593692299,72.48834418,86.406,86.322,60.742274]
[1770593692701,10.4214,86.42,86.331,60.742274]
[1770593692899,71.25804989,86.42,86.331,60.742274]
[1770593693503,10.423,86.407,86.331,60.742274]
[1770593693700,62.06534418,86.399,86.309,60.742274]
[1770593694406,62.06534418,86.378,86.288,60.742274]
[1770593694798,62.06534418,86.378,86.22,9.19270571]
[1770593694799,62.06534418,86.348,86.213,60.742274]
[1770593695001,62.06534418,86.348,86.261,60.742274]
[1770593695209,9.19270571,86.4,86.261,60.742274]
[1770593695210,62.06534418,86.339,86.261,60.742274]
[1770593695404,62.06534418,86.319,86.22,9.19270571]
[1770593695804,62.06534418,86.319,86.221,60.742274]
[1770593696003,62.06534418,86.319,86.241,60.742274]
[1770593696702,62.06534418,86.342,86.26,9.19270571]
[1770593696999,9.19270571,86.36,86.261,60.742274]
[1770593697204,62.06534418,86.422,86.301,60.742274]
[1770593697399,62.06534418,86.409,86.301,60.742274]
[1770593697606,62.06534418,86.369,86.28,9.19270571]
[1770593697806,72.49444418,86.356,86.276,60.742274]
[1770593698005,72.49444418,86.356,86.26,9.19270571]
[1770593698206,62.06534418,86.349,86.26,9.19270571]
[1770593698407,62.06534418,86.344,86.26,9.19270571]
[1770593698608,62.06534418,86.344,86.254,60.742274]
[1770593699114,62.06534418,86.344,86.263,60.742274]
[1770593699314,62.06534418,86.344,86.241,60.742274]
[1770593699511,62.06534418,86.344,86.264,60.742274]
[1770593700109,62.06534418,86.344,86.267,71.182074]
[1770593700616,10.4287,86.359,86.267,71.182074]
[1770593700807,10.4287,86.359,86.281,60.742274]
[1770593701004,62.06534418,86.367,86.285,10.4376]
[1770593701209,62.06534418,86.367,86.22,9.19270571]
[1770593701411,62.06534418,86.339,86.26,60.742274]
[1770593701610,62.06534418,86.336,86.26,69.93497971]
[1770593701812,62.06534418,86.382,86.301,60.742274]
[1770593702014,62.06534418,86.407,86.321,60.742274]
[1770593702213,62.06534418,86.429,86.34,69.93497971]
[1770593702418,62.06534418,86.451,86.361,60.742274]
[1770593702621,10.4224,86.411,86.331,60.742274]
[1770593703014,62.06534418,86.439,86.351,60.742274]
[1770593703215,62.06534418,86.429,86.33,69.93497971]
[1770593703817,9.19270571,86.45,86.351,60.742274]
[1770593704015,62.06534418,86.451,86.371,60.742274]
[1770593704219,62.06534418,86.451,86.37,9.19270571]
[1770593704220,62.06534418,86.477,86.391,60.742274]
[1770593704420,9.19270571,86.49,86.35,9.19270571]
[1770593704421,10.4141,86.48,86.411,60.742274]
[1770593705718,10.4124,86.494,86.411,60.742274]
[1770593705921,62.06534418,86.501,86.411,60.742274]
[1770593706922,62.06534418,86.501,86.413,60.742274]
[1770593708120,62.06534418,86.526,86.431,60.742274]
[1770593708527,10.4113,86.503,86.431,60.742274]
[1770593708922,9.19270571,86.49,86.407,60.742274]
[1770593709127,62.06534418,86.489,86.407,60.742274]
[1770593709426,62.06534418,86.485,86.407,60.742274]
[1770593709827,62.06534418,86.485,86.411,60.742274]
[1770593710830,10.4112,86.504,86.413,60.742274]
[1770593711029,72.47654418,86.504,86.413,60.742274]
[1770593711232,62.06534418,86.479,86.391,60.742274]
[1770593711427,72.48164418,86.462,86.391,60.742274]
[1770593711637,62.06534418,86.459,86.363,60.742274]
[1770593711825,10.4235,86.403,86.341,60.742274]
[1770593713025,72.49024418,86.39,86.317,60.742274]
[1770593713231,62.06534418,86.39,86.293,60.742274]
[1770593713427,9.19270571,86.4,86.311,60.742274]
[1770593713621,10.4245,86.394,86.311,60.742274]
[1770593714226,10.4224,86.412,86.311,60.742274]
[1770593714531,62.06534418,86.438,86.361,60.742274]
[1770593714726,71.25804989,86.46,86.361,60.742274]
[1770593714927,62.06534418,86.46,86.381,58.04576569]
[1770593715422,10.4169,86.457,86.381,58.04576569]
[1770593716033,10.4152,86.471,86.381,58.04576569]
[1770593716237,9.19270571,86.5,86.401,63.25300944]
[1770593716935,62.55625097,86.502,86.401,63.25300944]
[1770593717135,10.4132,86.487,86.401,63.25300944]
[1770593717535,62.55625097,86.527,86.41,35.12407432]
[1770593717838,62.55625097,86.503,86.411,63.25300944]
[1770593718035,62.55625097,86.503,86.413,63.25300944]
[1770593718431,10.4117,86.5,86.413,63.25300944]
[1770593718630,10.4117,86.5,86.41,35.12407432]
[1770593718631,62.55625097,86.516,86.415,63.25300944]
[1770593718828,62.55625097,86.559,86.451,63.25300944]
[1770593719036,10.405,86.556,86.478,63.25300944]
[1770593719237,62.55625097,86.559,86.478,63.25300944]
[1770593719433,10.4049,86.557,86.478,63.25300944]
[1770593719640,62.55625097,86.587,86.478,63.25300944]
[1770593719941,10.4045,86.56,86.48,63.25300944]
[1770593720139,62.55625097,86.587,86.491,63.25300944]
[1770593720441,10.3994,86.602,86.495,63.25300944]
[1770593720643,62.55625097,86.619,86.511,63.25300944]
[1770593720843,62.55625097,86.646,86.531,63.25300944]
[1770593721343,62.55625097,86.604,86.505,63.25300944]
[1770593722048,62.55625097,86.584,86.505,63.25300944]
[1770593722344,62.55625097,86.584,86.471,63.25300944]
[1770593722646,10.405,86.556,86.471,63.25300944]
[1770593722848,62.55625097,86.555,86.471,63.25300944]
[1770593723140,10.4076,86.534,86.447,63.25300944]
[1770593723540,10.4095,86.518,86.447,63.25300944]
[1770593724138,10.4075,86.535,86.447,63.25300944]
[1770593724338,62.55625097,86.548,86.447,63.25300944]
[1770593724745,10.4112,86.504,86.422,63.25300944]
[1770593725045,62.55625097,86.522,86.422,63.25300944]
[1770593725441,62.55625097,86.547,86.422,63.25300944]
[1770593725643,28.2011243,86.665,86.371,231.32]
[1770593725644,62.55625097,86.572,86.457,63.25300944]
[1770593726347,62.55625097,86.572,86.461,63.25300944]
[1770593727151,62.55625097,86.572,86.471,63.25300944]
[1770593727348,62.55625097,86.603,86.491,63.25300944]
[1770593727646,62.55625097,86.603,86.494,63.25300944]
[1770593727849,62.55625097,86.639,86.511,63.25300944]
[1770593728251,62.55625097,86.639,86.51,35.12407432]
[1770593728252,62.55625097,86.639,86.514,63.25300944]
[1770593728954,62.55625097,86.602,86.516,63.25300944]
[1770593729249,62.55625097,86.599,86.491,63.25300944]
[1770593729553,10.4025,86.577,86.491,63.25300944]
[1770593730752,10.4025,86.577,86.419,34.59]
[1770593730753,62.55625097,86.573,86.466,63.25300944]
[1770593731260,62.55625097,86.601,86.491,63.25300944]
[1770593731652,62.55625097,86.626,86.511,63.25300944]
[1770593731961,10.3989,86.606,86.514,63.25300944]
[1770593732261,10.3989,86.606,86.51,35.12407432]
[1770593732262,10.3989,86.606,86.516,63.25300944]
[1770593732757,35.12407432,86.6,86.471,63.25300944]
[1770593732948,35.12407432,86.6,86.47,35.12407432]
[1770593732949,62.55625097,86.599,86.473,63.25300944]
[1770593733152,10.4058,86.55,86.473,63.25300944]
[1770593733348,62.55625097,86.57,86.473,63.25300944]
[1770593734856,62.55625097,86.599,86.473,63.25300944]
[1770593735050,10.4022,86.579,86.489,63.25300944]
[1770593735667,62.55625097,86.653,86.533,63.25300944]
[1770593735954,31.20215481,86.704,86.533,63.25300944]
[1770593735955,62.55625097,86.642,86.533,63.25300944]
[1770593736156,62.55625097,86.609,86.504,63.25300944]
[1770593737559,10.4017,86.583,86.504,63.25300944]
[1770593738461,62.55625097,86.609,86.51,35.12407432]
[1770593738650,62.55625097,86.609,86.511,63.25300944]
[1770593738850,62.55625097,86.609,86.515,63.25300944]
[1770593739459,20.7836,86.666,86.521,63.25300944]
[1770593739460,62.55625097,86.633,86.521,63.25300944]
[1770593739960,62.55625097,86.657,86.556,63.25300944]
[1770593740259,62.55625097,86.649,86.531,63.25300944]
[1770593740464,10.3984,86.611,86.531,63.25300944]
[1770593740865,62.55625097,86.619,86.531,63.25300944]
[1770593741251,10.3998,86.599,86.531,63.25300944]
[1770593741456,10.3998,86.599,86.51,35.12407432]
[1770593741457,62.55625097,86.619,86.51,63.25300944]
[1770593741755,35.12407432,86.57,86.46,63.25300944]
[1770593742058,62.55625097,86.549,86.46,63.25300944]
[1770593742455,10.4061,86.547,86.46,63.25300944]
[1770593742862,62.55625097,86.569,86.465,63.25300944]
[1770593743261,10.4077,86.533,86.465,63.25300944]
[1770593743962,10.4096,86.518,86.465,63.25300944]
[1770593744154,62.55625097,86.544,86.436,63.25300944]
[1770593745763,10.4093,86.52,86.439,58.01691373]
[1770593746467,61.22491728,86.519,86.439,58.01691373]
[1770593746869,10.41,86.514,86.439,58.01691373]
[1770593747272,61.22491728,86.519,86.439,58.01691373]
[1770593747971,10.4115,86.502,86.439,58.01691373]
[1770593748865,10.413,86.489,86.439,58.01691373]
[1770593749366,61.22491728,86.542,86.439,58.01691373]
[1770593749862,161.8779,86.544,86.439,58.01691373]
[1770593749863,61.22491728,86.529,86.439,58.01691373]
[1770593750769,61.22491728,86.529,86.311,21.10833762]
[1770593750770,61.22491728,86.505,86.391,58.01691373]
[1770593751070,61.22491728,86.489,86.391,58.01691373]
[1770593751576,10.4159,86.466,86.391,58.01691373]
[1770593751768,61.22491728,86.489,86.391,58.01691373]
[1770593752366,61.22491728,86.489,86.37,35.12407432]
[1770593752571,61.22491728,86.449,86.363,58.01691373]
[1770593752973,10.419,86.44,86.363,58.01691373]
[1770593753169,61.22491728,86.449,86.363,58.01691373]
[1770593753479,61.22491728,86.449,86.34,58.01691373]
[1770593753680,61.22491728,86.445,86.343,58.01691373]
[1770593754072,10.4189,86.44,86.343,58.01691373]
[1770593754772,10.4208,86.425,86.349,58.01691373]
[1770593754974,61.22491728,86.439,86.349,58.01691373]
[1770593755471,10.4207,86.426,86.349,58.01691373]
[1770593755668,61.22491728,86.425,86.349,58.01691373]
[1770593756465,10.4202,86.43,86.349,58.01691373]
[1770593756670,61.22491728,86.439,86.326,58.01691373]
[1770593757679,61.22491728,86.439,86.331,58.01691373]
[1770593757982,10.4217,86.417,86.331,68.44891373]
[1770593758881,61.22491728,86.392,86.302,58.01691373]
[1770593759382,10.4264,86.378,86.302,58.01691373]
[1770593759972,10.4279,86.366,86.302,58.01691373]
[1770593760575,10.4279,86.366,86.156,28.1212362]
[1770593760576,10.4293,86.354,86.261,58.01691373]
[1770593760969,61.22491728,86.359,86.261,58.01691373]
[1770593761483,61.22491728,86.359,86.202,231.36]
[1770593761484,61.22491728,86.406,86.281,58.01691373]
[1770593761684,61.22491728,86.406,86.301,58.01691373]
[1770593761871,10.4267,86.376,86.301,58.01691373]
[1770593762075,61.22491728,86.406,86.301,58.01691373]
[1770593762276,61.22491728,86.406,86.219,20.8911]
[1770593762277,61.22491728,86.459,86.341,58.01691373]
[1770593762472,10.4206,86.426,86.349,58.01691373]
[1770593762672,61.22491728,86.459,86.349,58.01691373]
[1770593763081,61.22491728,86.459,86.34,23.45964233]
[1770593763082,61.22491728,86.459,86.366,58.01691373]
[1770593764587,61.22491728,86.462,86.366,58.01691373]
[1770593764886,10.4212,86.422,86.366,58.01691373]
[1770593765480,10.4196,86.435,86.366,58.01691373]
[1770593765684,61.22491728,86.459,86.366,58.01691373]
[1770593766480,61.22491728,86.459,86.368,58.01691373]
[1770593766882,10.4171,86.455,86.368,58.01691373]
[1770593767082,61.22491728,86.454,86.368,58.01691373]
[1770593767785,10.4173,86.453,86.37,58.01691373]
[1770593768681,61.22491728,86.479,86.39,58.01691373]
[1770593769285,10.4121,86.497,86.405,58.01691373]
[1770593769490,61.22491728,86.499,86.371,58.01691373]
[1770593769884,61.22491728,86.499,86.383,58.01691373]
[1770593771091,10.4151,86.472,86.388,58.01691373]
[1770593772195,10.4166,86.46,86.388,58.01691373]
[1770593772783,10.4179,86.448,86.388,58.01691373]
[1770593772990,61.22491728,86.448,86.366,58.01691373]
[1770593773388,10.4216,86.418,86.344,58.01691373]
[1770593774091,10.4216,86.418,86.346,58.01691373]
[1770593774291,61.22491728,86.427,86.346,58.01691373]
[1770593774488,61.22491728,86.459,86.363,58.01691373]
[1770593774994,10.422,86.415,86.363,58.01691373]
[1770593775484,61.22491728,86.435,86.363,58.01691373]
[1770593775692,61.22491728,86.435,86.339,54.16841109]
[1770593775996,8.09634251,86.485,86.315,54.16841109]
[1770593775997,55.52971614,86.419,86.315,54.16841109]
[1770593776189,55.52971614,86.398,86.315,54.16841109]
[1770593776784,10.427,86.373,86.315,54.16841109]
[1770593776990,55.52971614,86.398,86.315,54.16841109]
[1770593777192,10.4255,86.385,86.319,63.95627225]
[1770593777491,8.09170471,86.452,86.319,63.95627225]
[1770593777492,55.52971614,86.423,86.319,53.52287225]
[1770593777792,10.4241,86.397,86.321,53.52287225]
[1770593779088,10.4256,86.385,86.321,53.52287225]
[1770593779495,55.52971614,86.424,86.331,53.52287225]
[1770593780085,10.4224,86.411,86.338,53.52287225]
[1770593780288,55.52971614,86.424,86.338,53.52287225]
[1770593780693,10.4222,86.413,86.345,53.52287225]
[1770593781199,55.52971614,86.424,86.351,63.95247225]
[1770593781394,55.52971614,86.476,86.371,53.52287225]
[1770593781698,55.52971614,86.459,86.371,53.52287225]
[1770593781894,10.4215,86.418,86.345,53.52287225]
[1770593782394,10.4197,86.434,86.35,62.71775582]
[1770593782987,10.4181,86.447,86.375,53.52287225]
[1770593783182,55.52971614,86.457,86.375,53.52287225]
[1770593783993,55.52971614,86.479,86.381,53.52287225]
[1770593784194,55.52971614,86.479,86.401,53.52287225]
[1770593784691,10.4155,86.468,86.401,53.52287225]
[1770593784897,55.52971614,86.479,86.401,53.52287225]
[1770593785298,10.4142,86.479,86.403,53.52287225]
[1770593786400,55.52971614,86.467,86.38,62.71775582]
[1770593786597,55.52971614,86.467,86.38,53.52287225]
[1770593786802,55.52971614,86.459,86.351,53.52287225]
[1770593786989,10.4223,86.412,86.351,53.52287225]
[1770593787394,10.4194,86.436,86.358,53.52287225]
[1770593788196,10.4194,86.436,86.36,53.52287225]
[1770593788398,55.52971614,86.447,86.36,53.52287225]
[1770593788600,55.52971614,86.471,86.371,53.52287225]
[1770593788797,10.4176,86.451,86.382,10.4258]
[1770593788993,10.4176,86.451,86.383,53.52287225]
[1770593789196,55.52971614,86.471,86.383,53.52287225]
[1770593789497,10.416,86.465,86.389,53.52287225]
[1770593789702,10.416,86.465,86.296,28.500878]
[1770593789703,55.52971614,86.493,86.391,53.52287225]
[1770593789902,55.52971614,86.493,86.39,23.42573035]
[1770593789903,10.4145,86.477,86.396,53.52287225]
[1770593790090,55.52971614,86.493,86.396,53.52287225]
[1770593790797,10.4158,86.466,86.398,53.52287225]
[1770593792600,10.4158,86.466,86.398,63.94677225]
[1770593792902,10.4139,86.482,86.398,53.52287225]
[1770593793301,55.52971614,86.493,86.398,53.52287225]
[1770593794102,55.52971614,86.493,86.398,63.94677225]
[1770593794103,10.4152,86.471,86.398,63.94677225]